fUSD/lending_fUSD_20240428
["ID","MTS","AMOUNT","RATE_DAILY","PERIOD"]
[4095,1714327849031,-500.0,0.00010958,2]
[4097,1714327849050,-768.77,0.00010958,2]
[4099,1714327849069,-692.65,0.00010958,2]
[4101,1714327849087,-1778.24,0.00010958,2]
[4103,1714327849108,-1142.66,0.00010958,2]
[4104,1714327849117,-500.0,0.00010958,2]
[4105,1714327849126,-515.83,0.00010958,2]
[4107,1714327849144,-500.0,0.00010958,2]
[4109,1714327849162,-649.06,0.00010958,2]
[4111,1714327849182,-1406.26,0.00010958,2]
[4113,1714327849200,-500.0,0.00010958,2]
[4115,1714327849219,-597.93,0.00010958,2]
[4117,1714327849237,-500.0,0.00010958,2]
[4118,1714327849247,-500.0,0.00010958,2]
[4119,1714327849256,-500.0,0.00010958,2]
[4121,1714327849275,-1615.77,0.00010958,2]
[4123,1714327849293,-500.0,0.00010958,2]
[4125,1714327849311,-500.0,0.00010958,2]
[4127,1714327849332,-500.0,0.00010958,2]
[4129,1714327849351,-500.0,0.00010958,2]
[4131,1714327849369,-500.0,0.00010958,2]
[4133,1714327849388,-500.0,0.00010958,2]
[4135,1714327849408,-500.0,0.00010958,2]
[4137,1714327849426,-500.0,0.00010958,2]
[4139,1714327849444,-500.0,0.00010958,2]
[4140,1714327849453,-500.0,0.00010958,2]
[4141,1714327849462,-500.01792844,0.00010958,2]
[4143,1714327849479,-500.0,0.00010958,2]
[4145,1714327849499,-500.0,0.00010958,2]
[4147,1714327849517,-595.42,0.00010958,2]
[4149,1714327849535,-894.73,0.00010958,2]
[4150,1714327849544,-500.0,0.00010958,2]
[4151,1714327849554,-548.3,0.00010958,2]
[4152,1714327849563,-500.0,0.00010958,2]
[4153,1714327849572,-500.0,0.00010958,2]
[4155,1714327849589,-542.11,0.00010958,2]
[4156,1714327849598,-500.0,0.00010958,2]
[4157,1714327849607,-500.0,0.00010958,2]
[4158,1714327849616,-500.0,0.00010958,2]
[4159,1714327849625,-688.85,0.00010958,2]
[4160,1714327849634,-1843.67,0.00010958,2]
[4161,1714327849643,-500.0,0.00010958,2]
[4162,1714327849652,-500.0,0.00010958,2]
[4163,1714327849662,-500.0,0.00010958,2]
[4164,1714327849671,-626.13,0.00010958,2]
[4165,1714327849680,-2215.33,0.00010958,2]
[4166,1714327849689,-500.0,0.00010958,2]
[4167,1714327849698,-500.0,0.00010958,2]
[4168,1714327849707,-500.0,0.00010958,2]
[4169,1714327849716,-500.0,0.00010958,2]
[4170,1714327849725,-500.0,0.00010958,2]
[4171,1714327849734,-513.47587931,0.00010958,2]
[4172,1714327849743,-517.49,0.00010958,2]
[4173,1714327849753,-500.0,0.00010958,2]
[4174,1714327849762,-500.0,0.00010958,2]
[4175,1714327849771,-500.0,0.00010958,2]
[4176,1714327849780,-500.0,0.00010958,2]
[4177,1714327849790,-561.44,0.00010958,2]
[4178,1714327849799,-500.0,0.00010958,2]
[4179,1714327849809,-1247.47,0.00010958,2]
[4180,1714327849819,-500.0,0.00010958,2]
[4181,1714327849828,-500.0,0.00010958,2]
[4182,1714327849839,-500.0,0.00010958,2]
[4183,1714327849849,-500.0,0.00010958,2]
[4184,1714327849858,-996.14,0.00010958,2]
[4185,1714327849869,-1997.75,0.00010958,2]
[4186,1714327849878,-500.0,0.00010958,2]
[4187,1714327849887,-500.0,0.00010958,2]
[4189,1714327849905,-500.0,0.00010958,2]
[4191,1714327849924,-500.0,0.00010958,2]
[4192,1714327849934,-500.0,0.00010958,2]
[4193,1714327849942,-500.0,0.00010958,2]
[4194,1714327849952,-500.0,0.00010958,2]
[4195,1714327849961,-700.68,0.00010958,2]
[4196,1714327849970,-500.0,0.00010958,2]
[4197,1714327849979,-500.0,0.00010958,2]
[4198,1714327849988,-322.63173489,0.00010958,2]
[4199,1714327849997,-870.0,0.00010958,2]
[4200,1714327850007,-500.0,0.00010958,2]
[4201,1714327850018,-500.0,0.00010958,2]
[4202,1714327850027,-1000.0,0.00010958,2]
[4203,1714327850037,-1928.76,0.00010958,2]
[4204,1714327850047,-500.0,0.00010958,2]
[4205,1714327850057,-500.0,0.00010958,2]
[4206,1714327850067,-500.0,0.00010958,2]
[4207,1714327850076,-1614.43,0.00010958,2]
[4208,1714327850086,-500.0,0.00010958,2]
[4209,1714327850095,-500.0,0.00010958,2]
[4210,1714327850105,-500.0,0.00010958,2]
[4211,1714327850114,-500.0,0.00010958,2]
[4212,1714327850123,-500.0,0.00010958,2]
[4213,1714327850132,-500.0,0.00010958,2]
[4214,1714327850142,-973.03,0.00010958,2]
[4215,1714327850151,-500.0,0.00010958,2]
[4216,1714327850161,-1807.39,0.00010958,2]
[4217,1714327850170,-500.0,0.00010958,2]
[4218,1714327850180,-500.0,0.00010958,2]
[4219,1714327850191,-500.0,0.00010958,2]
[4220,1714327850201,-518.13,0.00010958,2]
[4221,1714327850212,-1618.32,0.00010958,2]
[4223,1714327850231,-1065.37,0.00010958,2]
[4224,1714327850240,-521.03,0.00010958,2]
[4225,1714327850250,-500.0,0.00010958,2]
[4226,1714327850260,-500.0,0.00010958,2]
[4227,1714327850269,-504.95809609,0.00010958,2]
[4228,1714327850278,-500.0,0.00010958,2]
[4229,1714327850288,-500.0,0.00010958,2]
[4231,1714327850306,-503.84087631,0.00010958,2]
[4233,1714327850327,-500.0,0.00010958,2]
[4235,1714327850351,-568.18,0.00010958,2]
[4237,1714327850371,-500.0,0.00010958,2]
[4239,1714327850390,-816.47,0.00010958,2]
[4241,1714327850411,-501.35,0.00010958,2]
[4243,1714327850430,-513.17,0.00010958,2]
[4245,1714327850450,-571.35,0.00010958,2]
[4247,1714327850470,-1221.56,0.00010958,2]
[4249,1714327850490,-500.0,0.00010958,2]
[4250,1714327850499,-500.0,0.00010958,2]
[4251,1714327850510,-500.0,0.00010958,2]
[4253,1714327850529,-1444.15,0.00010958,2]
[4255,1714327850547,-574.0,0.00010958,2]
[4257,1714327850566,-500.0,0.00010958,2]
[4259,1714327850583,-500.0,0.00010958,2]
[4261,1714327850602,-500.0,0.00010958,2]
[4263,1714327850621,-500.0,0.00010958,2]
[4265,1714327850640,-536.52,0.00010958,2]
[4266,1714327850649,-500.0,0.00010958,2]
[4267,1714327850659,-551.24,0.00010958,2]
[4269,1714327850679,-500.0,0.00010958,2]
[4270,1714327850687,-500.0,0.00010958,2]
[4271,1714327850696,-500.0,0.00010958,2]
[4273,1714327850715,-826.75,0.00010958,2]
[4275,1714327850734,-500.0,0.00010958,2]
[4277,1714327850752,-500.0,0.00010958,2]
[4279,1714327850774,-1344.38,0.00010958,2]
[4281,1714327850793,-500.0,0.00010958,2]
[4283,1714327850812,-500.0,0.00010958,2]
[4285,1714327850831,-500.0,0.00010958,2]
[4286,1714327850840,-251.31449179,0.00010958,2]
[4287,1714327850850,-551.75,0.00010958,2]
[4288,1714327850859,-500.0,0.00010958,2]
[4289,1714327850869,-500.0,0.00010958,2]
[4291,1714327850887,-500.0,0.00010958,2]
[4293,1714327850906,-500.0,0.00010958,2]
[4295,1714327850925,-500.0,0.00010958,2]
[4297,1714327850944,-500.0,0.00010958,2]
[4299,1714327850963,-500.0,0.00010958,2]
[4301,1714327850982,-500.47459637,0.00010958,2]
[4303,1714327851000,-1448.09,0.00010958,2]
[4305,1714327851019,-649.7,0.00010958,2]
[4307,1714327851037,-501.25950545,0.00010958,2]
[4309,1714327851057,-500.0,0.00010958,2]
[4311,1714327851076,-500.0,0.00010958,2]
[4313,1714327851095,-500.0,0.00010958,2]
[4315,1714327851115,-500.0,0.00010958,2]
[4317,1714327851134,-500.0,0.00010958,2]
[4319,1714327851153,-964.68,0.00010958,2]
[4321,1714327851172,-593.02,0.00010958,2]
[4323,1714327851191,-500.0,0.00010958,2]
[4324,1714327851200,-500.0,0.00010958,2]
[4325,1714327851210,-500.0,0.00010958,2]
[4326,1714327851220,-500.0,0.00010958,2]
[4327,1714327851230,-1160.93,0.00010958,2]
[4328,1714327851239,-1589.78,0.00010958,2]
[4329,1714327851248,-1046.22,0.00010958,2]
[4330,1714327851258,-588.04,0.00010958,2]
[4331,1714327851267,-315.04972339,0.00010958,2]
[4332,1714327851277,-500.0,0.00010958,2]
[4333,1714327851287,-500.0,0.00010958,2]
[4334,1714327851296,-500.0,0.00010958,2]
[4335,1714327851307,-500.0,0.00010958,2]
[4336,1714327851317,-500.0,0.00010958,2]
[4337,1714327851329,-500.0,0.00010958,2]
[4339,1714327851349,-500.0,0.00010958,2]
[4340,1714327851358,-500.0,0.00010958,2]
[4341,1714327851368,-772.44,0.00010958,2]
[4342,1714327851378,-500.0,0.00010958,2]
[4343,1714327851387,-500.0,0.00010958,2]
[4344,1714327851396,-500.0,0.00010958,2]
[4345,1714327851406,-541.03,0.00010958,2]
[4346,1714327851417,-987.7,0.00010958,2]
[4347,1714327851427,-500.0,0.00010958,2]
[4348,1714327851436,-1205.49,0.00010958,2]
[4349,1714327851445,-500.0,0.00010958,2]
[4351,1714327851464,-500.0,0.00010958,2]
[4353,1714327851483,-627.69,0.00010958,2]
[4355,1714327851502,-500.0,0.00010958,2]
[4357,1714327851522,-652.35,0.00010958,2]
[4359,1714327851540,-500.0,0.00010958,2]
[4361,1714327851558,-500.0,0.00010958,2]
[4363,1714327851577,-500.0,0.00010958,2]
[4365,1714327851595,-775.0,0.00010958,2]
[4367,1714327851613,-714.87,0.00010958,2]
[4369,1714327851631,-500.53436144,0.00010958,2]
[4371,1714327851650,-500.0,0.00010958,2]
[4373,1714327851668,-500.0,0.00010958,2]
[4375,1714327851686,-609.29,0.00010958,2]
[4377,1714327851704,-500.0,0.00010958,2]
[4379,1714327851723,-927.36,0.00010958,2]
[4381,1714327851742,-756.89,0.00010958,2]
[4383,1714327851760,-500.0,0.00010958,2]
[4385,1714327851779,-500.0,0.00010958,2]
[4387,1714327851797,-734.85,0.00010958,2]
[4389,1714327851816,-500.0,0.00010958,2]
[4391,1714327851835,-500.0,0.00010958,2]
[4393,1714327851853,-500.0,0.00010958,2]
[4395,1714327851871,-1503.11,0.00010958,2]
[4397,1714327851889,-500.0,0.00010958,2]
[4399,1714327851908,-500.0,0.00010958,2]
[4401,1714327851927,-500.0,0.00010958,2]
[4403,1714327851946,-1661.13,0.00010958,2]
[4405,1714327851964,-532.78,0.00010958,2]
[4407,1714327851982,-500.0,0.00010958,2]
[4409,1714327852000,-500.0,0.00010958,2]
[4411,1714327852020,-500.0,0.00010958,2]
[4413,1714327852038,-500.0,0.00010958,2]
[4415,1714327852332,-500.0,0.00010958,2]
[4417,1714327852351,-1842.91,0.00010958,2]
[4419,1714327852371,-500.0,0.00010958,2]
[4421,1714327852389,-500.0,0.00010958,2]
[4423,1714327852410,-520.83,0.00010958,2]
[4425,1714327852430,-500.0,0.00010958,2]
[4427,1714327852449,-1229.35,0.00010958,2]
[4429,1714327852468,-500.89451174,0.00010958,2]
[4431,1714327852488,-500.0,0.00010958,2]
[4433,1714327852506,-715.19,0.00010958,2]
[4435,1714327852525,-500.0,0.00010958,2]
[4437,1714327852544,-509.16587078,0.00010958,2]
[4439,1714327852563,-500.0,0.00010958,2]
[4441,1714327852581,-500.0,0.00010958,2]
[4443,1714327852599,-500.0,0.00010958,2]
[4445,1714327852618,-700.33,0.00010958,2]
[4446,1714327852627,-1224.72,0.00010958,2]
[4447,1714327852636,-500.0,0.00010958,2]
[4448,1714327852645,-284.29125035,0.00010958,2]
[4449,1714327852654,-500.0,0.00010958,2]
[4450,1714327852663,-500.0,0.00010958,2]
[4451,1714327852673,-1217.27,0.00010958,2]
[4452,1714327852682,-500.0,0.00010958,2]
[4453,1714327852691,-500.0,0.00010958,2]
[4454,1714327852700,-500.0,0.00010958,2]
[4455,1714327852709,-500.0,0.00010958,2]
[4456,1714327852718,-558.97,0.00010958,2]
[4457,1714327852727,-500.0,0.00010958,2]
[4458,1714327852736,-500.0,0.00010958,2]
[4459,1714327852745,-500.0,0.00010958,2]
[4460,1714327852755,-694.36,0.00010958,2]
[4461,1714327852764,-613.29990851,0.00010958,2]
[4462,1714327852774,-500.0,0.00010958,2]
[4463,1714327852783,-411.34446551,0.00010958,2]
[4464,1714327852793,-641.19,0.00010958,2]
[4465,1714327852802,-500.0,0.00010958,2]
[4466,1714327852811,-536.5,0.00010958,2]
[4467,1714327852821,-500.0,0.00010958,2]
[4469,1714327852839,-503.55464705,0.00010958,2]
[4471,1714327852857,-500.0,0.00010958,2]
[4473,1714327852877,-500.0,0.00010958,2]
[4475,1714327852895,-932.09,0.00010958,2]
[4477,1714327852913,-500.0,0.00010958,2]
[4479,1714327852932,-500.0,0.00010958,2]
[4481,1714327852956,-500.0,0.00010958,2]
[4482,1714327852966,-500.0,0.00010958,2]
[4483,1714327852976,-500.0,0.00010958,2]
[4485,1714327852995,-500.0,0.00010958,2]
[4487,1714327853016,-500.0,0.00010958,2]
[4489,1714327853036,-500.0,0.00010958,2]
[4491,1714327853056,-500.0,0.00010958,2]
[4493,1714327853075,-500.0,0.00010958,2]
[4495,1714327853095,-500.0,0.00010958,2]
[4497,1714327853114,-500.0,0.00010958,2]
[4499,1714327853133,-1453.55,0.00010958,2]
[4501,1714327853153,-727.28,0.00010958,2]
[4503,1714327853172,-544.66,0.00010958,2]
[4505,1714327853192,-500.0,0.00010958,2]
[4507,1714327853211,-500.0,0.00010958,2]
[4509,1714327853229,-500.0,0.00010958,2]
[4511,1714327853248,-500.0,0.00010958,2]
[4513,1714327853270,-500.0,0.00010958,2]
[4514,1714327853279,-500.0,0.00010958,2]
[4515,1714327853288,-505.75959671,0.00010958,2]
[4517,1714327853307,-500.0,0.00010958,2]
[4519,1714327853327,-500.0,0.00010958,2]
[4521,1714327853350,-500.0,0.00010958,2]
[4523,1714327853370,-500.0,0.00010958,2]
[4525,1714327853390,-500.0,0.00010958,2]
[4527,1714327853411,-505.05,0.00010958,2]
[4529,1714327853430,-500.0,0.00010958,2]
[4531,1714327853450,-583.31,0.00010958,2]
[4533,1714327853469,-501.53127226,0.00010958,2]
[4535,1714327853488,-523.5,0.00010958,2]
[4537,1714327853507,-502.32,0.00010958,2]
[4539,1714327853526,-500.0,0.00010958,2]
[4541,1714327853544,-500.0,0.00010958,2]
[4543,1714327853563,-500.0,0.00010958,2]
[4545,1714327853582,-688.47,0.00010958,2]
[4547,1714327853601,-500.0,0.00010958,2]
[4549,1714327853620,-620.2,0.00010958,2]
[4551,1714327853639,-1782.57,0.00010958,2]
[4553,1714327853658,-503.62050256,0.00010958,2]
[4555,1714327853677,-1127.47,0.00010958,2]
[4557,1714327853696,-500.0,0.00010958,2]
[4559,1714327853714,-500.82832813,0.00010958,2]
[4560,1714327853724,-500.0,0.00010958,2]
[4561,1714327853734,-500.0,0.00010958,2]
[4562,1714327853743,-500.0,0.00010958,2]
[4563,1714327853752,-619.56,0.00010958,2]
[4565,1714327853773,-810.95,0.00010958,2]
[4567,1714327853792,-500.0,0.00010958,2]
[4569,1714327853811,-500.0,0.00010958,2]
[4571,1714327853829,-500.0,0.00010958,2]
[4573,1714327853849,-500.0,0.00010958,2]
[4575,1714327853868,-500.0,0.00010958,2]
[4577,1714327853887,-500.0,0.00010958,2]
[4579,1714327853906,-500.0,0.00010958,2]
[4581,1714327853926,-500.0,0.00010958,2]
[4583,1714327853944,-589.63,0.00010958,2]
[4585,1714327853963,-765.61,0.00010958,2]
[4587,1714327853982,-500.0,0.00010958,2]
[4589,1714327854000,-500.0,0.00010958,2]
[4591,1714327854020,-500.0,0.00010958,2]
[4593,1714327854040,-1736.13,0.00010958,2]
[4595,1714327854059,-1333.46,0.00010958,2]
[4597,1714327854079,-500.0,0.00010958,2]
[4599,1714327854098,-500.0,0.00010958,2]
[4601,1714327854117,-1559.91,0.00010958,2]
[4603,1714327854136,-500.0,0.00010958,2]
[4605,1714327854155,-988.47,0.00010958,2]
[4607,1714327854174,-1958.59,0.00010958,2]
[4609,1714327854193,-1359.52,0.00010958,2]
[4611,1714327854212,-500.0,0.00010958,2]
[4613,1714327854231,-500.0,0.00010958,2]
[4615,1714327854250,-500.0,0.00010958,2]
[4617,1714327854270,-500.0,0.00010958,2]
[4619,1714327854289,-500.0,0.00010958,2]
[4621,1714327854310,-500.0,0.00010958,2]
[4623,1714327854331,-556.94,0.00010958,2]
[4625,1714327854351,-500.0,0.00010958,2]
[4627,1714327854371,-500.0,0.00010958,2]
[4629,1714327854391,-500.0,0.00010958,2]
[4631,1714327854414,-509.00997057,0.00010958,2]
[4633,1714327854433,-500.0,0.00010958,2]
[4635,1714327854453,-500.0,0.00010958,2]
[4637,1714327854472,-500.60462434,0.00010958,2]
[4638,1714327854482,-500.0,0.00010958,2]
[4639,1714327854492,-500.0,0.00010958,2]
[4640,1714327854501,-530.69,0.00010958,2]
[4641,1714327854512,-514.94,0.00010958,2]
[4642,1714327854521,-500.0,0.00010958,2]
[4643,1714327854531,-500.0,0.00010958,2]
[4645,1714327854549,-500.0,0.00010958,2]
[4647,1714327854568,-1488.53,0.00010958,2]
[4648,1714327854578,-500.0,0.00010958,2]
[4649,1714327854587,-1596.97,0.00010958,2]
[4651,1714327854606,-500.0,0.00010958,2]
[4653,1714327854625,-500.0,0.00010958,2]
[4655,1714327854643,-1243.48,0.00010958,2]
[4657,1714327854662,-500.0,0.00010958,2]
[4659,1714327854681,-520.82472495,0.00010958,2]
[4661,1714327854699,-500.0,0.00010958,2]
[4663,1714327854718,-500.0,0.00010958,2]
[4665,1714327854736,-500.0,0.00010958,2]
[4667,1714327854755,-500.0,0.00010958,2]
[4669,1714327854774,-500.0,0.00010958,2]
[4671,1714327854793,-514.93468525,0.00010958,2]
[4673,1714327854812,-500.0,0.00010958,2]
[4675,1714327854833,-500.0,0.00010958,2]
[4677,1714327854854,-1196.35,0.00010958,2]
[4679,1714327854872,-500.0,0.00010958,2]
[4681,1714327854892,-1475.93,0.00010958,2]
[4683,1714327854911,-500.0,0.00010958,2]
[4685,1714327854929,-534.39,0.00010958,2]
[4687,1714327854947,-500.0,0.00010958,2]
[4689,1714327854966,-2399.5,0.00010958,2]
[4691,1714327854986,-500.0,0.00010958,2]
[4693,1714327855005,-620.93,0.00010958,2]
[4695,1714327855026,-1929.02,0.00010958,2]
[4697,1714327855044,-500.0,0.00010958,2]
[4699,1714327855064,-500.0,0.00010958,2]
[4701,1714327855083,-2344.57,0.00010958,2]
[4703,1714327855102,-654.98,0.00010958,2]
[4705,1714327855120,-500.0,0.00010958,2]
[4707,1714327855140,-500.0,0.00010958,2]
[4709,1714327855159,-500.0,0.00010958,2]
[4710,1714327855168,-500.0,0.00010958,2]
[4711,1714327855177,-871.78,0.00010958,2]
[4713,1714327855197,-500.0,0.00010958,2]
[4715,1714327855215,-500.0,0.00010958,2]
[4717,1714327855233,-795.43,0.00010958,2]
[4719,1714327855252,-159.84511797,0.00010958,2]
[4721,1714327855271,-500.0,0.00010958,2]
[4723,1714327855289,-2250.39,0.00010958,2]
[4724,1714327855299,-3807.95,0.00010958,2]
[4725,1714327855308,-500.51053102,0.00010958,2]
[4726,1714327855318,-500.0,0.00010958,2]
[4727,1714327855329,-500.6622114,0.00010958,2]
[4728,1714327855340,-596.24,0.00010958,2]
[4729,1714327855349,-500.0,0.00010958,2]
[4731,1714327855369,-28768.8,0.00010958,2]
[4733,1714327855388,-500.0,0.00010958,2]
[4735,1714327855409,-433.41,0.00010958,2]
[4737,1714327855429,-62921.46,0.00010958,2]
[4739,1714327855651,-500.0,0.00010958,2]
[4741,1714327855671,-399.25478338,0.00010958,2]
[4743,1714327855689,-500.0,0.00010958,2]
[4745,1714327855708,-500.0,0.00010958,2]
[4747,1714327855727,-1671.74,0.00010958,2]
[4749,1714327855745,-508.52841318,0.00010958,2]
[4751,1714327855764,-500.0,0.00010958,2]
[4753,1714327855783,-1929.95,0.00010958,2]
[4755,1714327855801,-500.0,0.00010958,2]
[4757,1714327855821,-500.0,0.00010958,2]
[4758,1714327855830,-509.27570124,0.00010958,2]
[4759,1714327855840,-4726.78,0.00010958,2]
[4761,1714327855858,-16038.69,0.00010958,2]
[4763,1714327855876,-500.0,0.00010958,2]
[4765,1714327855896,-500.0,0.00010958,2]
[4766,1714327855905,-500.0,0.00010958,2]
[4767,1714327855914,-500.0,0.00010958,2]
[4769,1714327855933,-1298.02,0.00010958,2]
[4771,1714327855951,-2260.54,0.00010958,2]
[4773,1714327855970,-792.96,0.00010958,2]
[4775,1714327855989,-500.0,0.00010958,2]
[4777,1714327856008,-500.0,0.00010958,2]
[4779,1714327856027,-500.0,0.00010958,2]
[4781,1714327856046,-573.53,0.00010958,2]
[4783,1714327856065,-500.0,0.00010958,2]
[4785,1714327856084,-1458.57,0.00010958,2]
[4787,1714327856103,-500.0,0.00010958,2]
[4789,1714327856122,-500.72,0.00010958,2]
[4791,1714327856142,-500.0,0.00010958,2]
[4793,1714327856160,-2030.24,0.00010958,2]
[4795,1714327856179,-500.0,0.00010958,2]
[4797,1714327856198,-500.0,0.00010958,2]
[4799,1714327856218,-1953.6,0.00010958,2]
[4800,1714327856228,-589.08,0.00010958,2]
[4801,1714327856238,-3343.08,0.00010958,2]
[4802,1714327856248,-532.45,0.00010958,2]
[4803,1714327856258,-21057.08,0.00010958,2]
[4805,1714327856278,-879.3,0.00010958,2]
[4806,1714327856289,-2353.99,0.00010958,2]
[4807,1714327856299,-1235.53,0.00010958,2]
[4808,1714327856309,-500.0,0.00010958,2]
[4809,1714327856318,-555.29,0.00010958,2]
[4810,1714327856330,-2376.77,0.00010958,2]
[4811,1714327856341,-500.0,0.00010958,2]
[4812,1714327856351,-500.0,0.00010958,2]
[4813,1714327856360,-500.0,0.00010958,2]
[4814,1714327856371,-500.0,0.00010958,2]
[4815,1714327856381,-500.0,0.00010958,2]
[4816,1714327856390,-500.0,0.00010958,2]
[4817,1714327856399,-500.0,0.00010958,2]
[4818,1714327856411,-500.0,0.00010958,2]
[4819,1714327856421,-500.0,0.00010958,2]
[4820,1714327856430,-500.0,0.00010958,2]
[4821,1714327856440,-2235.31,0.00010958,2]
[4822,1714327856449,-575.4253088,0.00010958,2]
[4823,1714327856460,-500.0,0.00010958,2]
[4824,1714327856470,-500.0,0.00010958,2]
[4825,1714327856479,-1122.4,0.00010958,2]
[4826,1714327856489,-500.0,0.00010958,2]
[4827,1714327856501,-1353.02,0.00010958,2]
[4828,1714327856512,-500.0,0.00010958,2]
[4829,1714327856522,-500.0,0.00010958,2]
[4831,1714327856539,-2439.23,0.00010958,2]
[4833,1714327856557,-505.57073169,0.00010958,2]
[4835,1714327856575,-523.70134887,0.00010958,2]
[4837,1714327856592,-500.0,0.00010958,2]
[4839,1714327856610,-500.0,0.00010958,2]
[4841,1714327856628,-500.0,0.00010958,2]
[4843,1714327856645,-839.55,0.00010958,2]
[4845,1714327856663,-500.0,0.00010958,2]
[4847,1714327856681,-4638.6,0.00010958,2]
[4849,1714327856700,-10234.54,0.00010958,2]
[4851,1714327856718,-500.0,0.00010958,2]
[4855,1714327856745,-500.0,0.00010958,2]
[4857,1714327856763,-955.6,0.00010958,2]
[4859,1714327856782,-1545.21,0.00010958,2]
[4861,1714327856801,-500.0,0.00010958,2]
[4863,1714327856819,-1142.19,0.00010958,2]
[4865,1714327856838,-501.42873702,0.00010958,2]
[4867,1714327856856,-1877.43,0.00010958,2]
[4869,1714327856874,-3093.06,0.00010958,2]
[4871,1714327856894,-500.0,0.00010958,2]
[4873,1714327856912,-2265.09,0.00010958,2]
[4875,1714327856931,-500.0,0.00010958,2]
[4877,1714327856950,-7994.55,0.00010958,2]
[4879,1714327856969,-4270.94,0.00010958,2]
[4881,1714327856989,-500.0,0.00010958,2]
[4883,1714327857007,-500.0,0.00010958,2]
[4885,1714327857026,-500.0,0.00010958,2]
[4887,1714327857044,-500.0,0.00010958,2]
[4889,1714327857064,-500.0,0.00010958,2]
[4891,1714327857103,-1582.16,0.00010958,2]
[4893,1714327857134,-500.0,0.00010958,2]
[4895,1714327857170,-500.0,0.00010958,2]
[4897,1714327857202,-504.78962588,0.00010958,2]
[4899,1714327857230,-500.0,0.00010958,2]
[4901,1714327857262,-500.0,0.00010958,2]
[4903,1714327857295,-500.0,0.00010958,2]
[4905,1714327857320,-500.0,0.00010958,2]